fUSD/lending_fUSD_20260626
["ID","MTS","AMOUNT","RATE_DAILY","PERIOD"]
[426449493,1782406258000,-644.42,0.00029934,2]
[426449492,1782406258000,-185.24,0.00029934,2]
[426449498,1782406258000,-50000.0,0.0003,2]
[426449508,1782406258000,-157.195377,0.0003,2]
[426449473,1782406258000,-248.66,0.00029932,2]
[426449497,1782406258000,-150.0,0.0003,2]
[426449488,1782406258000,-482.49,0.00029934,2]
[426449472,1782406258000,-248.62,0.00029932,2]
[426449456,1782406258000,-185.24,0.0002993,2]
[426449471,1782406258000,-644.42,0.00029932,2]
[426449499,1782406258000,-50000.0,0.0003,30]
[426449444,1782406258000,-15186.67554817,0.000299,2]
[426449446,1782406258000,-15186.67554817,0.000299,2]
[426449445,1782406258000,-15186.67554817,0.000299,2]
[426449448,1782406258000,-15186.67554817,0.000299,2]
[426449447,1782406258000,-15186.67554817,0.000299,2]
[426449449,1782406258000,-15186.67554817,0.000299,2]
[426449451,1782406258000,-248.62,0.0002993,2]
[426449453,1782406258000,-248.62,0.0002993,2]
[426449450,1782406258000,-625.5,0.00029926,2]
[426449454,1782406258000,-644.42,0.0002993,2]
[426449452,1782406258000,-185.24,0.0002993,2]
[426449469,1782406258000,-644.42,0.00029932,2]
[426449457,1782406258000,-644.39,0.0002993,2]
[426449458,1782406258000,-185.24,0.0002993,2]
[426449460,1782406258000,-248.62,0.0002993,2]
[426449459,1782406258000,-234.49,0.0002993,2]
[426449461,1782406258000,-248.62,0.0002993,2]
[426449465,1782406258000,-248.66,0.00029932,2]
[426449462,1782406258000,-185.24,0.0002993,2]
[426449464,1782406258000,-246.2,0.00029932,2]
[426449466,1782406258000,-644.42,0.00029932,2]
[426449463,1782406258000,-396.32,0.0002993,2]
[426449467,1782406258000,-248.62,0.00029932,2]
[426449470,1782406258000,-482.49,0.00029932,2]
[426449468,1782406258000,-303.01,0.00029932,2]
[426449455,1782406258000,-248.62,0.0002993,2]
[426449500,1782406258000,-63000.18462078,0.0003,2]
[426449494,1782406258000,-800.0,0.0003,2]
[426449503,1782406258000,-10378.89351001,0.0003,2]
[426449536,1782406258000,-22500.0,0.0003,2]
[426449538,1782406258000,-170.06072593,0.0003,2]
[426449542,1782406258000,-24999.99,0.0003,2]
[426449537,1782406258000,-22500.0,0.0003,2]
[426449540,1782406258000,-7660.35,0.0003,2]
[426449535,1782406258000,-12500.0,0.0003,2]
[426449539,1782406258000,-12499.99,0.0003,2]
[426449534,1782406258000,-10000.0,0.0003,2]
[426449541,1782406258000,-8646.96,0.0003,2]
[426449543,1782406258000,-12500.0,0.0003,2]
[426449544,1782406258000,-25000.0,0.0003,2]
[426449553,1782406258000,-151.0,0.0003,7]
[426449533,1782406258000,-15000.0,0.0003,2]
[426449545,1782406258000,-162.99897269,0.0003,2]
[426449546,1782406258000,-175.02887,0.0003,7]
[426449556,1782406258000,-2107.645486,0.0003,7]
[426449550,1782406258000,-687.525294,0.0003,7]
[426449554,1782406258000,-2107.645486,0.0003,7]
[426449547,1782406258000,-214.410532,0.0003,7]
[426449555,1782406258000,-2107.645486,0.0003,7]
[426449549,1782406258000,-687.525294,0.0003,7]
[426449548,1782406258000,-687.525294,0.0003,7]
[426449552,1782406258000,-151.0,0.0003,7]
[426449557,1782406258000,-2107.645482,0.0003,7]
[426449559,1782406258000,-1251.861817,0.0003,7]
[426449558,1782406258000,-1251.861817,0.0003,7]
[426449551,1782406258000,-687.525296,0.0003,7]
[426449528,1782406258000,-12500.0,0.0003,2]
[426449501,1782406258000,-20321.91471781,0.0003,2]
[426449526,1782406258000,-22500.0,0.0003,2]
[426449502,1782406258000,-5805.13481732,0.0003,3]
[426449505,1782406258000,-5721.01542824,0.0003,2]
[426449506,1782406258000,-590.62438753,0.0003,4]
[426449507,1782406258000,-150.0,0.0003,2]
[426449560,1782406258000,-1251.861817,0.0003,7]
[426449504,1782406258000,-200.25026943,0.0003,7]
[426449509,1782406258000,-600.0,0.0003,2]
[426449525,1782406258000,-25000.0,0.0003,2]
[426449519,1782406258000,-9999.99,0.0003,2]
[426449515,1782406258000,-276.03779659,0.0003,2]
[426449512,1782406258000,-282.52,0.0003,3]
[426449510,1782406258000,-263.02,0.0003,11]
[426449518,1782406258000,-2500.0,0.0003,2]
[426449517,1782406258000,-9886.79,0.0003,2]
[426449511,1782406258000,-301.49182409,0.0003,30]
[426449513,1782406258000,-1000.0,0.0003,20]
[426449529,1782406258000,-15000.0,0.0003,2]
[426449527,1782406258000,-12500.0,0.0003,2]
[426449530,1782406258000,-2500.0,0.0003,2]
[426449521,1782406258000,-22500.0,0.0003,2]
[426449524,1782406258000,-10000.0,0.0003,2]
[426449531,1782406258000,-216.38644042,0.0003,2]
[426449532,1782406258000,-22500.0,0.0003,2]
[426449522,1782406258000,-12500.0,0.0003,2]
[426449514,1782406258000,-1000.0,0.0003,20]
[426449520,1782406258000,-25000.0,0.0003,2]
[426449516,1782406258000,-22499.99,0.0003,2]
[426449523,1782406258000,-2500.0,0.0003,2]
[426449601,1782406259000,-2453.94,0.00030136,2]
[426449600,1782406259000,-2453.94,0.00030136,2]
[426449595,1782406259000,-2453.94,0.00030136,2]
[426449592,1782406259000,-12817.0826963,0.0003013,2]
[426449594,1782406259000,-30130.75282465,0.0003013,2]
[426449597,1782406259000,-2453.94,0.00030136,2]
[426449602,1782406259000,-2453.94,0.00030136,2]
[426449599,1782406259000,-2453.94,0.00030136,2]
[426449593,1782406259000,-99088.58421585,0.0003013,2]
[426449603,1782406259000,-2453.94,0.00030136,2]
[426449596,1782406259000,-2453.94,0.00030136,2]
[426449598,1782406259000,-2453.94,0.00030136,2]
[426449618,1782406259000,-2453.96511725,0.00030136,2]
[426449606,1782406259000,-2453.94,0.00030136,2]
[426449610,1782406259000,-2453.94,0.00030136,2]
[426449608,1782406259000,-2453.94,0.00030136,2]
[426449609,1782406259000,-2453.94,0.00030136,2]
[426449607,1782406259000,-2453.94,0.00030136,2]
[426449616,1782406259000,-2453.94,0.00030136,2]
[426449615,1782406259000,-2453.94,0.00030136,2]
[426449611,1782406259000,-2453.94,0.00030136,2]
[426449613,1782406259000,-2453.94,0.00030136,2]
[426449614,1782406259000,-2453.94,0.00030136,2]
[426449612,1782406259000,-2453.94,0.00030136,2]
[426449617,1782406259000,-2453.94,0.00030136,2]
[426449604,1782406259000,-2453.94,0.00030136,2]
[426449605,1782406259000,-2453.94,0.00030136,2]
[426449590,1782406259000,-14172.21534996,0.0003013,2]
[426449578,1782406259000,-170.64899275,0.00030067,2]
[426449584,1782406259000,-15000.0,0.000301,2]
[426449620,1782406259000,-500.0,0.00030136,2]
[426449562,1782406259000,-1700.675539,0.0003,30]
[426449568,1782406259000,-151.0,0.0003,7]
[426449569,1782406259000,-162.447976,0.0003,7]
[426449563,1782406259000,-553.529473,0.0003,7]
[426449564,1782406259000,-553.529473,0.0003,7]
[426449566,1782406259000,-553.529478,0.0003,7]
[426449565,1782406259000,-553.529473,0.0003,7]
[426449567,1782406259000,-151.0,0.0003,7]
[426449571,1782406259000,-162.447976,0.0003,7]
[426449570,1782406259000,-162.447976,0.0003,7]
[426449573,1782406259000,-200.0,0.0003,2]
[426449572,1782406259000,-162.447976,0.0003,7]
[426449575,1782406259000,-244.783811,0.0003,7]
[426449576,1782406259000,-168.84514975,0.0003004,2]
[426449574,1782406259000,-2356.68400413,0.0003,2]
[426449579,1782406259000,-237.78940052,0.00030067,2]
[426449577,1782406259000,-206.72585292,0.00030067,2]
[426449580,1782406259000,-252.74891059,0.00030067,2]
[426449583,1782406259000,-15000.0,0.000301,2]
[426449591,1782406259000,-31060.26277458,0.0003013,2]
[426449582,1782406259000,-786201.0,0.0003008,20]
[426449581,1782406259000,-1992.76295809,0.0003008,15]
[426449585,1782406259000,-22500.0,0.00030125,2]
[426449588,1782406259000,-22500.0,0.00030125,2]
[426449587,1782406259000,-22500.0,0.00030125,2]
[426449589,1782406259000,-12500.0,0.00030125,2]
[426449586,1782406259000,-12500.0,0.00030125,2]
[426449619,1782406259000,-500.0,0.00030136,2]
[426449561,1782406259000,-1251.861814,0.0003,7]
[426449626,1782406259000,-500.0,0.00030136,2]
[426449661,1782406259000,-932.23244563,0.0003014,4]
[426449657,1782406259000,-932.23244563,0.0003014,4]
[426449658,1782406259000,-932.23244563,0.0003014,4]
[426449656,1782406259000,-932.23244563,0.0003014,4]
[426449655,1782406259000,-932.23244563,0.0003014,4]
[426449659,1782406259000,-932.23244563,0.0003014,4]
[426449662,1782406259000,-932.23244563,0.0003014,4]
[426449660,1782406259000,-932.23244563,0.0003014,4]
[426449653,1782406259000,-932.23244563,0.0003014,4]
[426449663,1782406259000,-932.23,0.0003014,4]
[426449664,1782406259000,-2175.20903981,0.0003014,4]
[426449666,1782406259000,-2175.20903981,0.0003014,4]
[426449654,1782406259000,-932.23244563,0.0003014,4]
[426449674,1782406259000,-2175.20903981,0.0003014,4]
[426449667,1782406259000,-2175.20903981,0.0003014,4]
[426449675,1782406259000,-2175.20903981,0.0003014,4]
[426449676,1782406259000,-2175.20903981,0.0003014,4]
[426449665,1782406259000,-2175.20903981,0.0003014,4]
[426449669,1782406259000,-2175.20903981,0.0003014,4]
[426449668,1782406259000,-2175.20903981,0.0003014,4]
[426449670,1782406259000,-2175.20903981,0.0003014,4]
[426449671,1782406259000,-2175.20903981,0.0003014,4]
[426449672,1782406259000,-2175.20903981,0.0003014,4]
[426449673,1782406259000,-2175.20903981,0.0003014,4]
[426449678,1782406259000,-2175.20903981,0.0003014,4]
[426449679,1782406259000,-2175.20903981,0.0003014,4]
[426449677,1782406259000,-2175.20903981,0.0003014,4]
[426449652,1782406259000,-932.23244563,0.0003014,4]
[426449680,1782406259000,-2175.20903981,0.0003014,4]
[426449642,1782406259000,-938.24,0.00030137,2]
[426449649,1782406259000,-932.23244563,0.0003014,4]
[426449622,1782406259000,-207.88089837,0.00030136,2]
[426449625,1782406259000,-195.22896654,0.00030136,2]
[426449623,1782406259000,-172.84696157,0.00030136,2]
[426449624,1782406259000,-215.23627029,0.00030136,2]
[426449627,1782406259000,-259.291576,0.00030136,2]
[426449628,1782406259000,-169.78325859,0.00030136,2]
[426449631,1782406259000,-162.92721718,0.00030137,30]
[426449636,1782406259000,-193.0,0.00030137,30]
[426449638,1782406259000,-173.0,0.00030137,30]
[426449630,1782406259000,-157.9764001,0.00030137,2]
[426449637,1782406259000,-554.0,0.00030137,30]
[426449632,1782406259000,-443.0,0.00030137,30]
[426449629,1782406259000,-247.70440909,0.00030137,2]
[426449621,1782406259000,-469.98057339,0.00030136,2]
[426449633,1782406259000,-703.0,0.00030137,30]
[426449639,1782406259000,-623.0,0.00030137,30]
[426449647,1782406259000,-932.23244563,0.0003014,4]
[426449644,1782406259000,-932.23244563,0.0003014,4]
[426449646,1782406259000,-932.23244563,0.0003014,4]
[426449648,1782406259000,-932.23244563,0.0003014,4]
[426449650,1782406259000,-932.23244563,0.0003014,4]
[426449645,1782406259000,-932.23244563,0.0003014,4]
[426449651,1782406259000,-932.23244563,0.0003014,4]
[426449640,1782406259000,-165.0,0.00030137,30]
[426449641,1782406259000,-278.0,0.00030137,30]
[426449635,1782406259000,-666.0,0.00030137,30]
[426449634,1782406259000,-573.0,0.00030137,30]
[426449643,1782406259000,-625.5,0.00030137,30]
[426449717,1782406260000,-1243.50842706,0.0003014,4]
[426449720,1782406260000,-1243.50842706,0.0003014,4]
[426449721,1782406260000,-1243.50842706,0.0003014,4]
[426449719,1782406260000,-1243.50842706,0.0003014,4]
[426449718,1782406260000,-1243.50842706,0.0003014,4]
[426449709,1782406260000,-1243.50842706,0.0003014,4]
[426449716,1782406260000,-1243.50842706,0.0003014,4]
[426449725,1782406260000,-969.050875,0.0003014,4]
[426449715,1782406260000,-1243.50842706,0.0003014,4]
[426449710,1782406260000,-1243.50842706,0.0003014,4]
[426449714,1782406260000,-1243.50842706,0.0003014,4]
[426449722,1782406260000,-1243.50842706,0.0003014,4]
[426449731,1782406260000,-969.050875,0.0003014,4]
[426449724,1782406260000,-969.050875,0.0003014,4]
[426449726,1782406260000,-969.050875,0.0003014,4]
[426449730,1782406260000,-969.050875,0.0003014,4]
[426449728,1782406260000,-969.050875,0.0003014,4]
[426449713,1782406260000,-1243.50842706,0.0003014,4]
[426449732,1782406260000,-969.050875,0.0003014,4]
[426449729,1782406260000,-969.050875,0.0003014,4]
[426449727,1782406260000,-969.050875,0.0003014,4]
[426449737,1782406260000,-969.050875,0.0003014,4]
[426449738,1782406260000,-969.050875,0.0003014,4]
[426449734,1782406260000,-969.050875,0.0003014,4]
[426449735,1782406260000,-969.050875,0.0003014,4]
[426449733,1782406260000,-969.050875,0.0003014,4]
[426449723,1782406260000,-1243.5,0.0003014,4]
[426449712,1782406260000,-1243.50842706,0.0003014,4]
[426449702,1782406260000,-532.93218303,0.0003014,4]
[426449711,1782406260000,-1243.50842706,0.0003014,4]
[426449736,1782406260000,-969.050875,0.0003014,4]
[426449681,1782406260000,-2175.20903981,0.0003014,4]
[426449685,1782406260000,-532.93218303,0.0003014,4]
[426449682,1782406260000,-2175.20903981,0.0003014,4]
[426449687,1782406260000,-532.93218303,0.0003014,4]
[426449684,1782406260000,-532.93218303,0.0003014,4]
[426449688,1782406260000,-532.93218303,0.0003014,4]
[426449689,1782406260000,-532.93218303,0.0003014,4]
[426449686,1782406260000,-532.93218303,0.0003014,4]
[426449683,1782406260000,-2175.2,0.0003014,4]
[426449691,1782406260000,-532.93218303,0.0003014,4]
[426449701,1782406260000,-532.93218303,0.0003014,4]
[426449708,1782406260000,-1243.50842706,0.0003014,4]
[426449690,1782406260000,-532.93218303,0.0003014,4]
[426449692,1782406260000,-532.93218303,0.0003014,4]
[426449695,1782406260000,-532.93218303,0.0003014,4]
[426449696,1782406260000,-532.93218303,0.0003014,4]
[426449697,1782406260000,-532.93218303,0.0003014,4]
[426449699,1782406260000,-532.93218303,0.0003014,4]
[426449698,1782406260000,-532.93218303,0.0003014,4]
[426449700,1782406260000,-532.93218303,0.0003014,4]
[426449706,1782406260000,-1243.50842706,0.0003014,4]
[426449703,1782406260000,-532.93,0.0003014,4]
[426449704,1782406260000,-1243.50842706,0.0003014,4]
[426449705,1782406260000,-1243.50842706,0.0003014,4]
[426449707,1782406260000,-1243.50842706,0.0003014,4]
[426449694,1782406260000,-532.93218303,0.0003014,4]
[426449693,1782406260000,-532.93218303,0.0003014,4]
[426449740,1782406260000,-969.050875,0.0003014,4]
[426449742,1782406260000,-969.050875,0.0003014,4]
[426449770,1782406260000,-150.0,0.00030149,30]
[426449782,1782406260000,-449.0,0.00030196,30]
[426449785,1782406260000,-160.0,0.00030196,30]
[426449780,1782406260000,-150.0,0.00030196,30]
[426449778,1782406260000,-453.0,0.00030196,30]
[426449774,1782406260000,-698.0,0.00030149,30]
[426449776,1782406260000,-175.06676271,0.0003015,2]
[426449775,1782406260000,-215.0,0.00030149,30]
[426449777,1782406260000,-209.72009339,0.0003015,2]
[426449783,1782406260000,-270.0,0.00030196,30]
[426449779,1782406260000,-709.0,0.00030196,30]
[426449784,1782406260000,-461.0,0.00030196,30]
[426449769,1782406260000,-150.0,0.00030149,30]
[426449796,1782406260000,-2500.0,0.0003025,2]
[426449795,1782406260000,-12500.0,0.0003025,2]
[426449787,1782406260000,-14628.64,0.000302,2]
[426449788,1782406260000,-15860.53877383,0.000302,2]
[426449789,1782406260000,-25000.0,0.0003025,2]
[426449793,1782406260000,-22500.0,0.0003025,2]
[426449792,1782406260000,-25000.0,0.0003025,2]
[426449791,1782406260000,-2500.0,0.0003025,2]
[426449790,1782406260000,-12500.0,0.0003025,2]
[426449794,1782406260000,-12500.0,0.0003025,2]
[426449797,1782406260000,-22500.0,0.0003025,2]
[426449798,1782406260000,-12500.0,0.0003025,2]
[426449739,1782406260000,-969.050875,0.0003014,4]
[426449786,1782406260000,-15000.0,0.000302,2]
[426449764,1782406260000,-150.0,0.00030149,30]
[426449781,1782406260000,-257.0,0.00030196,30]
[426449766,1782406260000,-150.0,0.00030149,30]
[426449771,1782406260000,-150.0,0.00030149,30]
[426449746,1782406260000,-2261.11870834,0.0003014,4]
[426449743,1782406260000,-969.05,0.0003014,4]
[426449747,1782406260000,-2261.11870834,0.0003014,4]
[426449749,1782406260000,-2261.11870834,0.0003014,4]
[426449745,1782406260000,-2261.11870834,0.0003014,4]
[426449744,1782406260000,-2261.11870834,0.0003014,4]
[426449748,1782406260000,-2261.11870834,0.0003014,4]
[426449750,1782406260000,-2261.11870834,0.0003014,4]
[426449753,1782406260000,-2261.11870834,0.0003014,4]
[426449752,1782406260000,-2261.11870834,0.0003014,4]
[426449754,1782406260000,-2261.11870834,0.0003014,4]
[426449755,1782406260000,-2261.11870834,0.0003014,4]
[426449756,1782406260000,-2261.11870834,0.0003014,4]
[426449741,1782406260000,-969.050875,0.0003014,4]
[426449768,1782406260000,-247.0,0.00030149,30]
[426449758,1782406260000,-2261.11870834,0.0003014,4]
[426449765,1782406260000,-150.0,0.00030149,30]
[426449767,1782406260000,-150.0,0.00030149,30]
[426449763,1782406260000,-2261.11,0.0003014,4]
[426449761,1782406260000,-2261.11870834,0.0003014,4]
[426449773,1782406260000,-361.0,0.00030149,30]
[426449772,1782406260000,-159.0,0.00030149,30]
[426449751,1782406260000,-2261.11870834,0.0003014,4]
[426449757,1782406260000,-2261.11870834,0.0003014,4]
[426449759,1782406260000,-2261.11870834,0.0003014,4]
[426449760,1782406260000,-2261.11870834,0.0003014,4]
[426449762,1782406260000,-2261.11870834,0.0003014,4]
[426449847,1782406261000,-414.09,0.00030377,2]
[426449842,1782406261000,-409.95,0.00030373,2]
[426449839,1782406261000,-1485.79,0.00030362,2]
[426449843,1782406261000,-22500.0,0.00030375,2]
[426449833,1782406261000,-414.09,0.00030343,2]
[426449824,1782406261000,-1163.22,0.00030336,7]
[426449831,1782406261000,-1163.22,0.00030341,30]
[426449832,1782406261000,-1163.22,0.00030341,7]
[426449835,1782406261000,-414.09,0.00030354,7]
[426449828,1782406261000,-409.95,0.00030338,2]
[426449837,1782406261000,-1442.15,0.0003036,2]
[426449830,1782406261000,-1163.22,0.00030341,2]
[426449841,1782406261000,-414.09,0.00030366,30]
[426449849,1782406261000,-414.09,0.00030389,7]
[426449845,1782406261000,-22500.0,0.00030375,2]
[426449846,1782406261000,-12500.0,0.00030375,2]
[426449836,1782406261000,-1485.8,0.0003036,2]
[426449840,1782406261000,-1442.15,0.00030363,2]
[426449838,1782406261000,-409.95,0.00030361,30]
[426449859,1782406261000,-253.0,0.000304,30]
[426449852,1782406261000,-150.0,0.00030396,30]
[426449848,1782406261000,-409.95,0.00030385,7]
[426449850,1782406261000,-1163.22,0.00030393,2]
[426449853,1782406261000,-150.0,0.00030396,30]
[426449855,1782406261000,-1163.22,0.00030396,2]
[426449851,1782406261000,-257.0,0.00030396,30]
[426449844,1782406261000,-12500.0,0.00030375,2]
[426449834,1782406261000,-409.95,0.00030349,7]
[426449800,1782406261000,-1485.8,0.00030276,7]
[426449827,1782406261000,-1163.22,0.00030336,7]
[426449805,1782406261000,-1442.15,0.00030277,2]
[426449856,1782406261000,-409.95,0.00030396,30]
[426449799,1782406261000,-2333.0,0.00030268,3]
[426449803,1782406261000,-1485.8,0.00030276,7]
[426449802,1782406261000,-1485.8,0.00030276,30]
[426449801,1782406261000,-1485.8,0.00030276,2]
[426449807,1782406261000,-1442.15,0.00030277,7]
[426449806,1782406261000,-1442.15,0.00030277,30]
[426449808,1782406261000,-1485.79,0.0003028,7]
[426449804,1782406261000,-1442.15,0.00030277,7]
[426449809,1782406261000,-1485.79,0.0003028,2]
[426449822,1782406261000,-10000.0,0.00030333,2]
[426449819,1782406261000,-150.0,0.00030314,30]
[426449810,1782406261000,-1485.79,0.0003028,30]
[426449820,1782406261000,-226.0,0.00030314,30]
[426449821,1782406261000,-10000.0,0.00030333,2]
[426449811,1782406261000,-1485.79,0.0003028,7]
[426449812,1782406261000,-1442.15,0.00030282,7]
[426449814,1782406261000,-1442.15,0.00030282,30]
[426449813,1782406261000,-1442.15,0.00030282,2]
[426449818,1782406261000,-15000.0,0.000303,2]
[426449815,1782406261000,-1442.15,0.00030282,7]
[426449817,1782406261000,-153.95,0.000303,7]
[426449816,1782406261000,-226.0,0.00030296,30]
[426449823,1782406261000,-10000.0,0.00030333,2]
[426449825,1782406261000,-1163.22,0.00030336,2]
[426449826,1782406261000,-1163.22,0.00030336,30]
[426449829,1782406261000,-1163.22,0.00030341,7]
[426449854,1782406261000,-273.0,0.00030396,30]
[426449914,1782406261000,-409.95,0.00030549,2]
[426449858,1782406261000,-217.0,0.000304,30]
[426449890,1782406261000,-800.0,0.000305,2]
[426449892,1782406261000,-800.0,0.000305,2]
[426449893,1782406261000,-25000.0,0.000305,2]
[426449895,1782406261000,-2500.0,0.000305,2]
[426449903,1782406261000,-12500.0,0.000305,2]
[426449902,1782406261000,-22500.0,0.000305,2]
[426449896,1782406261000,-25000.0,0.000305,2]
[426449894,1782406261000,-12500.0,0.000305,2]
[426449904,1782406261000,-3132.42,0.000305,30]
[426449897,1782406261000,-22500.0,0.000305,2]
[426449905,1782406261000,-3132.42,0.000305,30]
[426449898,1782406261000,-12500.0,0.000305,2]
[426449899,1782406261000,-12500.0,0.000305,2]
[426449906,1782406261000,-409.95,0.00030502,30]
[426449901,1782406261000,-2500.0,0.000305,2]
[426449900,1782406261000,-15000.0,0.000305,2]
[426449913,1782406261000,-409.95,0.00030538,30]
[426449908,1782406261000,-409.95,0.00030514,2]
[426449907,1782406261000,-414.09,0.00030504,30]
[426449909,1782406261000,-414.09,0.00030515,2]
[426449912,1782406261000,-414.09,0.00030538,30]
[426449916,1782406261000,-409.96,0.00030561,7]
[426449910,1782406261000,-409.95,0.00030526,7]
[426449915,1782406261000,-414.09,0.0003055,2]
[426449918,1782406261000,-152.0,0.00030616,30]
[426449911,1782406261000,-414.09,0.00030527,7]
[426449857,1782406261000,-15000.0,0.000304,2]
[426449888,1782406261000,-294.0,0.00030495,30]
[426449884,1782406261000,-300.0,0.00030495,30]
[426449917,1782406261000,-15000.0,0.000306,2]
[426449889,1782406261000,-307.0,0.00030495,30]
[426449861,1782406261000,-409.95,0.00030408,2]
[426449860,1782406261000,-414.09,0.000304,30]
[426449871,1782406261000,-409.95,0.00030467,30]
[426449862,1782406261000,-414.09,0.00030412,2]
[426449867,1782406261000,-409.95,0.00030443,2]
[426449863,1782406261000,-409.95,0.0003042,7]
[426449865,1782406261000,-409.95,0.00030432,30]
[426449891,1782406261000,-800.0,0.000305,2]
[426449866,1782406261000,-414.09,0.00030435,30]
[426449869,1782406261000,-409.95,0.00030455,7]
[426449870,1782406261000,-414.09,0.00030458,7]
[426449868,1782406261000,-414.09,0.00030446,2]
[426449872,1782406261000,-414.09,0.00030469,30]
[426449864,1782406261000,-414.09,0.00030423,7]
[426449875,1782406261000,-5000.0,0.00030477,2]
[426449886,1782406261000,-300.0,0.00030495,30]
[426449873,1782406261000,-7235.45677371,0.00030477,2]
[426449887,1782406261000,-180.0,0.00030495,30]
[426449883,1782406261000,-300.0,0.00030495,30]
[426449882,1782406261000,-300.0,0.00030495,30]
[426449881,1782406261000,-414.09,0.00030492,7]
[426449885,1782406261000,-300.0,0.00030495,30]
[426449877,1782406261000,-5000.0,0.00030477,2]
[426449874,1782406261000,-5000.0,0.00030477,2]
[426449880,1782406261000,-409.95,0.00030491,7]
[426449878,1782406261000,-409.95,0.00030479,2]
[426449876,1782406261000,-5000.0,0.00030477,2]
[426449879,1782406261000,-414.09,0.00030481,2]
[426449961,1782406262000,-400.0,0.000309,11]
[426449959,1782406262000,-150.0,0.00030877,2]
[426449962,1782406262000,-1418.94094439,0.00030915,2]
[426449958,1782406262000,-22500.0,0.00030875,2]
[426449957,1782406262000,-22500.0,0.00030875,2]
[426449947,1782406262000,-22500.0,0.0003075,2]
[426449955,1782406262000,-22500.0,0.00030875,2]
[426449953,1782406262000,-15000.0,0.000308,2]
[426449948,1782406262000,-12500.0,0.0003075,2]
[426449950,1782406262000,-22500.0,0.0003075,2]
[426449960,1782406262000,-15000.0,0.000309,2]
[426449956,1782406262000,-12500.0,0.00030875,2]
[426449970,1782406262000,-40085.66163345,0.00031,2]
[426449964,1782406262000,-1303.29597679,0.00030915,2]
[426449963,1782406262000,-1474.80665773,0.00030915,2]
[426449966,1782406262000,-800.0,0.00031,2]
[426449976,1782406262000,-1000.0,0.00031,20]
[426449972,1782406262000,-5000.0,0.00031,2]
[426449965,1782406262000,-1548.14731894,0.00030915,2]
[426449969,1782406262000,-13000.0,0.00031,2]
[426449967,1782406262000,-800.0,0.00031,2]
[426449971,1782406262000,-310.50815273,0.00031,2]
[426449973,1782406262000,-200.0,0.00031,11]
[426449968,1782406262000,-800.0,0.00031,2]
[426449946,1782406262000,-25000.0,0.0003075,2]
[426449954,1782406262000,-935.47,0.00030852,2]
[426449951,1782406262000,-22500.0,0.0003075,2]
[426449933,1782406262000,-157.0,0.00030661,30]
[426449944,1782406262000,-12500.0,0.0003075,2]
[426449974,1782406262000,-10824.55745328,0.00031,2]
[426449919,1782406262000,-153.0,0.00030616,30]
[426449921,1782406262000,-225.0,0.00030616,30]
[426449923,1782406262000,-22500.0,0.00030625,2]
[426449922,1782406262000,-200.0,0.00030616,30]
[426449924,1782406262000,-12500.0,0.00030625,2]
[426449926,1782406262000,-22500.0,0.00030625,2]
[426449927,1782406262000,-26190.86435349,0.00030628,3]
[426449928,1782406262000,-6166.95049961,0.0003065,2]
[426449925,1782406262000,-22500.0,0.00030625,2]
[426449929,1782406262000,-264.98407298,0.0003065,6]
[426449931,1782406262000,-210.0,0.00030661,30]
[426449943,1782406262000,-25000.0,0.0003075,2]
[426449930,1782406262000,-3008.18193383,0.0003065,2]
[426449934,1782406262000,-546.0,0.00030661,30]